bitfinex-derivatives/quotes_ETHF0:USTF0_20250918
["timestamp","ask_amount","ask_price","bid_price","bid_amount"]
[1758202060379,0.96099388,4586.9,4586.8,0.703]
[1758202060582,1.25129388,4586.9,4586.8,0.703]
[1758202071798,0.75949388,4586.9,4586.8,0.703]
[1758202072091,0.2903,4587.4,4586.8,0.703]
[1758202072288,1.04992784,4587.3,4587.2,0.703]
[1758202072594,0.55772784,4587.3,4587.2,0.703]
[1758202073895,1.04992784,4587.3,4587.2,0.703]
[1758202074901,0.2019,4587.3,4587.2,0.703]
[1758202075102,0.2903,4587.6,4587.2,0.703]
[1758202075398,0.4922,4587.6,4587.5,0.8193]
[1758202075595,0.6937,4587.6,4587.5,0.8193]
[1758202079897,0.6937,4587.6,4587.5,0.703]
[1758202080302,0.6937,4587.6,4587.5,0.2005]
[1758202080599,0.8362,4587.0,4586.9,3.6997]
[1758202080998,0.8362,4587.0,4586.9,3.4048]
[1758202081698,0.8362,4587.0,4586.9,3.6997]
[1758202082997,0.7202,4587.0,4586.9,3.9009]
[1758202083394,0.8362,4587.0,4586.9,3.2078]
[1758202083704,0.8362,4587.0,4586.9,3.6997]
[1758202083901,0.7202,4587.0,4586.9,3.9009]
[1758202084301,0.3094,4587.3,4586.9,3.9009]
[1758202084501,1.07074864,4587.2,4587.1,0.6931]
[1758202084808,1.27834864,4587.2,4587.1,0.6931]
[1758202087705,0.55814864,4587.2,4587.1,0.6931]
[1758202088407,0.317,4587.7,4587.1,0.6931]
[1758202088601,1.08215353,4587.6,4587.5,0.2061]
[1758202088796,1.28945353,4587.6,4587.5,0.1928]
[1758202089001,1.28945353,4587.6,4587.5,0.7039]
[1758202091004,0.5239,4587.6,4587.5,0.8281]
[1758202091309,0.7312,4588.4,4588.3,0.7039]
[1758202091508,1.28934245,4588.4,4588.3,0.7039]
[1758202092408,0.7312,4588.4,4588.3,0.7039]
[1758202094506,0.317,4588.5,4588.4,0.305]
[1758202094713,0.8499,4588.5,4588.4,0.4978]
[1758202096509,0.8499,4588.5,4588.4,0.1928]
[1758202097112,0.5329,4588.5,4588.2,3.7318]
[1758202097316,0.7312,4588.3,4588.2,3.4268]
[1758202097711,0.7312,4588.3,4588.2,3.2078]
[1758202099416,0.7312,4588.3,4588.2,3.7056]
[1758202100016,0.7312,4588.3,4588.2,3.2078]
[1758202101416,0.7312,4588.3,4588.0,0.0217]
[1758202102213,0.7312,4588.3,4588.0,0.3267]
[1758202102911,0.7312,4588.3,4588.0,0.0217]
[1758202103118,0.7312,4588.3,4588.1,0.305]
[1758202103319,0.7312,4588.3,4588.0,0.3267]
[1758202103616,0.7312,4588.3,4588.0,0.0217]
[1758202105407,0.55756275,4588.2,4587.7,1.8626]
[1758202105712,0.4142,4587.8,4587.5,0.1242]
[1758202105918,3.2078,4587.6,4587.5,0.4292]
[1758202106117,3.76536275,4587.6,4587.5,0.4292]
[1758202106309,7.76536275,4587.6,4587.5,0.4292]
[1758202106709,7.98436275,4587.6,4587.5,0.4292]
[1758202108120,7.76536275,4587.6,4587.5,0.4292]
[1758202108316,7.98436275,4587.6,4587.5,0.4292]
[1758202108622,4.77656275,4587.6,4587.5,0.4292]
[1758202109220,4.55756275,4587.6,4587.5,0.4292]
[1758202109423,4.77656275,4587.6,4587.5,0.4292]
[1758202110223,8.2254705,4587.6,4587.5,0.4292]
[1758202114826,8.2254705,4587.6,4587.5,0.1242]
[1758202115117,8.2254705,4587.6,4587.5,0.4292]
[1758202117125,8.0064705,4587.6,4587.5,0.4292]
[1758202117426,8.2254705,4587.6,4587.5,0.4292]
[1758202118726,8.2254705,4587.6,4587.5,0.1242]
[1758202119226,8.2254705,4587.6,4587.5,0.4311]
[1758202119431,4.2254705,4587.6,4587.5,0.4311]
[1758202119921,4.2254705,4587.6,4586.6,0.0218]
[1758202119922,8.2254705,4587.6,4586.6,0.0218]
[1758202120120,3.2078,4586.9,4586.6,0.0218]
[1758202120326,0.77656275,4586.8,4586.6,0.0218]
[1758202120527,0.55756275,4586.7,4586.5,0.1238]
[1758202120720,0.219,4586.6,4586.5,0.1238]
[1758202120926,0.77656275,4586.6,4586.5,0.1238]
[1758202121529,0.77656275,4586.6,4586.5,0.3218]
[1758202122029,0.77656275,4586.6,4586.5,0.8248]
[1758202123423,0.55756275,4586.6,4586.5,0.8248]
[1758202123624,3.2078,4587.4,4586.9,0.3069]
[1758202123825,1.02802932,4587.3,4587.2,0.3941]
[1758202124132,1.02802932,4587.3,4587.2,0.701]
[1758202124618,0.80902932,4587.3,4587.2,0.5049]
[1758202124822,1.02802932,4587.3,4587.2,0.5049]
[1758202125329,1.02802932,4587.3,4587.2,0.3069]
[1758202130330,0.80902932,4587.3,4587.2,0.3069]
[1758202130529,1.02802932,4587.3,4587.2,0.3069]
[1758202131520,0.80902932,4587.3,4587.2,0.3069]
[1758202131729,1.02802932,4587.3,4587.2,0.3069]
[1758202132329,1.02802932,4587.3,4587.2,0.5049]
[1758202136728,1.02802932,4587.3,4587.2,0.3069]
[1758202136929,1.02888536,4587.3,4587.1,0.3069]
[1758202137136,0.80988536,4587.2,4587.1,0.3069]
[1758202140436,1.02888536,4587.2,4587.1,0.7207]
[1758202141131,0.80988536,4587.2,4587.1,0.7207]
[1758202141335,1.02888536,4587.2,4587.1,0.7207]
[1758202143334,0.1754,4587.1,4586.5,0.1238]
[1758202143640,0.1754,4586.6,4586.5,0.3352]
[1758202143932,0.63591294,4586.6,4586.5,0.3352]
[1758202144235,1.20428536,4586.6,4586.5,0.3352]
[1758202144629,1.20428536,4586.6,4586.5,0.5376]
[1758202144830,1.02888536,4586.6,4586.5,0.5376]
[1758202145332,1.02888536,4586.6,4586.5,0.8428]
[1758202145636,0.80988536,4586.6,4586.5,0.8428]
[1758202145839,0.80988536,4586.6,4586.5,4.8428]
[1758202146034,1.02888536,4586.6,4586.5,4.8428]
[1758202146428,0.78737242,4586.6,4586.5,4.8428]
[1758202147935,3.2078,4587.3,4587.2,0.2131]
[1758202148133,0.45758241,4587.3,4587.2,0.7297]
[1758202148636,0.96778241,4587.3,4587.2,0.7297]
[1758202148832,0.76278241,4587.3,4587.2,0.7297]
[1758202149037,0.45758241,4587.3,4587.2,0.7297]
[1758202149638,0.23858241,4587.3,4587.2,0.7297]
[1758202149838,0.45758241,4587.3,4587.2,0.7297]
[1758202150039,0.66258241,4587.3,4587.2,0.7297]
[1758202150240,0.96778241,4587.3,4587.2,0.7297]
[1758202153243,0.45758241,4587.3,4587.2,0.7297]
[1758202153538,0.23858241,4587.3,4587.2,0.7297]
[1758202153747,0.45758241,4587.3,4587.2,0.7297]
[1758202154333,3.2078,4587.9,4587.8,0.2131]
[1758202154538,4.17532352,4587.9,4587.8,0.7297]
[1758202155043,4.37632352,4587.9,4587.8,0.7297]
[1758202155443,0.5219,4587.5,4587.4,0.5183]
[1758202155638,1.0461,4587.5,4587.4,0.5183]
[1758202155834,1.0461,4587.5,4587.4,0.7297]
[1758202156038,0.9302,4587.5,4587.4,0.7297]
[1758202156439,0.7112,4587.5,4587.4,0.7297]
[1758202156642,1.0461,4587.5,4587.4,0.7297]
[1758202157036,0.9302,4587.5,4587.4,0.7297]
[1758202157640,1.28429,4587.5,4586.8,0.3052]
[1758202157845,1.0461,4587.5,4586.8,0.3052]
[1758202158439,1.0461,4587.5,4587.4,0.2131]
[1758202158636,1.28428175,4587.5,4587.4,0.5183]
[1758202159939,1.0461,4587.5,4587.4,0.5183]
[1758202160145,1.49695778,4587.5,4587.4,0.7297]
[1758202160745,1.29595778,4587.5,4587.4,0.7297]
[1758202160946,1.27795778,4587.5,4587.4,0.7297]
[1758202161147,1.49695778,4587.5,4587.4,0.7297]
[1758202162343,1.61285778,4587.5,4587.4,0.7297]
[1758202163841,1.49695778,4587.5,4587.4,0.7297]
[1758202164342,0.56675778,4587.5,4587.4,0.7297]
[1758202164550,0.78575778,4587.5,4587.4,0.7297]
[1758202165143,0.56675778,4587.5,4587.4,0.7297]
[1758202165344,0.78575778,4587.5,4587.4,0.7297]
[1758202165637,1.30765778,4587.5,4586.6,0.3052]
[1758202165851,0.205,4586.7,4586.6,0.94770999]
[1758202166050,0.205,4586.7,4586.6,0.7297]
[1758202166348,0.3052,4586.9,4586.7,0.3052]
[1758202166651,0.424,4587.1,4587.0,0.4245]
[1758202166948,1.29590942,4587.1,4587.0,0.7297]
[1758202167344,1.07690942,4587.1,4587.0,0.7297]
[1758202167546,1.29590942,4587.1,4587.0,0.7297]
[1758202168844,1.49690942,4587.1,4587.0,0.7297]
[1758202170047,1.49690942,4587.1,4586.5,3.3316]
[1758202170252,0.7112,4586.6,4586.5,4.0613]
[1758202173249,0.205,4586.6,4586.5,4.0613]
[1758202173556,0.3052,4587.8,4587.3,0.3052]
[1758202173750,0.7112,4587.8,4587.7,0.2131]
[1758202174057,1.74390504,4587.8,4587.5,0.3052]
[1758202174253,0.205,4587.2,4587.1,0.7297]
[1758202174451,1.29577323,4587.2,4587.1,0.7297]
[1758202174650,1.54299317,4587.2,4587.1,0.7297]
[1758202174957,1.23779317,4587.2,4587.1,0.7297]
[1758202175152,1.03279317,4587.2,4587.1,0.7297]
[1758202175359,1.0328821,4587.2,4587.1,0.7297]
[1758202176956,0.8138821,4587.2,4587.1,0.7297]
[1758202177546,0.56657323,4587.2,4587.1,0.7297]
[1758202177750,0.6127,4587.7,4587.6,0.4043]
[1758202177950,1.42730449,4587.7,4587.6,0.7108]
[1758202178359,1.74700449,4587.7,4587.6,0.7108]
[1758202179549,1.74700449,4587.7,4587.6,0.1987]
[1758202179749,0.7134,4587.1,4586.8,0.3065]
[1758202179954,0.7134,4586.6,4586.5,3.713]
[1758202180159,0.7134,4586.6,4586.5,3.9186]
[1758202181061,0.7134,4586.6,4586.5,4.0419]
[1758202183554,1.28063133,4586.6,4586.5,3.9186]
[1758202188566,1.28063133,4586.6,4586.5,4.0419]
[1758202189061,1.28063133,4586.6,4586.5,3.9186]
[1758202189764,1.28063133,4586.6,4586.5,0.7108]
[1758202190158,0.56723133,4586.6,4586.5,0.7108]
[1758202190367,0.56723133,4586.6,4586.5,0.8341]
[1758202190965,0.56723133,4586.6,4586.5,4.0419]
[1758202192363,0.5182,4587.9,4587.8,0.145]
[1758202192567,0.7134,4587.9,4587.8,0.29]
[1758202192963,0.7134,4587.9,4587.8,0.145]
[1758202195063,0.7134,4587.9,4587.6,3.2295]
[1758202195361,0.7134,4587.7,4587.6,3.2295]
[1758202195567,0.95547489,4587.7,4587.6,3.2295]
[1758202195766,0.95547489,4587.7,4587.6,0.0217]
[1758202196765,1.17547489,4587.7,4587.6,0.0217]
[1758202197470,0.7056,4587.2,4587.1,3.3527]
[1758202198258,0.7056,4587.2,4587.1,3.4976]
[1758202198571,0.5105,4587.2,4587.1,3.4976]
[1758202198870,0.2989,4587.2,4587.1,3.5882]
[1758202199570,0.5105,4587.2,4587.1,3.4976]
[1758202199871,0.7056,4587.2,4587.1,3.4976]
[1758202200372,0.2989,4587.2,4587.1,3.5882]
[1758202201062,0.7056,4587.2,4587.1,3.4976]
[1758202201263,0.7056,4587.2,4586.9,0.0218]
[1758202201264,0.116,4587.0,4586.9,0.0218]
[1758202201474,1.0416,4587.0,4586.4,2.1807]
[1758202201668,0.5227,4586.5,4586.4,2.1807]
[1758202201866,1.0635134,4586.5,4586.4,1e-08]
[1758202202069,5.2815434,4586.5,4586.4,1e-08]
[1758202203065,1.0635134,4586.5,4586.4,1e-08]
[1758202203260,1.0635134,4586.5,4586.4,0.35960001]
[1758202203461,0.116,4587.0,4586.4,3.67980001]
[1758202203763,0.2989,4587.0,4586.9,3.6798]
[1758202203968,0.2989,4587.4,4586.9,3.6798]
[1758202204162,0.2989,4587.3,4586.9,3.5674]
[1758202204363,0.5105,4587.3,4587.2,0.3596]
[1758202204567,0.56395472,4587.4,4587.2,0.472]
[1758202204764,0.2989,4587.9,4587.8,0.1798]
[1758202204960,0.5105,4587.9,4587.8,0.3596]
[1758202205166,1.07441077,4587.9,4587.8,0.3596]
[1758202205369,0.2989,4588.4,4588.3,0.4707]
[1758202205572,0.3037,4588.9,4588.5,0.4707]
[1758202205965,0.3037,4588.8,4588.5,0.4707]
[1758202206368,0.116,4589.0,4588.5,0.4707]
[1758202206566,0.3037,4589.2,4588.5,0.4707]
[1758202206769,3.2078,4589.7,4588.5,4.79653]
[1758202206970,3.2078,4589.7,4589.1,3.2078]
[1758202207162,0.3037,4589.3,4589.1,3.2078]
[1758202208369,0.5024,4589.2,4589.1,3.2078]
[1758202208573,0.1274,4589.0,4588.6,3.2078]
[1758202208767,0.7071,4588.7,4588.6,3.2078]
[1758202209077,0.1987,4588.2,4588.1,3.2078]
[1758202209369,0.7071,4588.2,4588.1,3.2078]
[1758202209573,0.5024,4588.2,4588.1,3.2078]
[1758202210269,0.7071,4588.2,4588.1,3.2078]
[1758202211975,0.1274,4588.5,4588.1,3.2078]
[1758202212175,0.3037,4588.4,4588.1,3.2078]
[1758202212376,0.3037,4588.8,4588.1,3.2078]
[1758202212579,0.3037,4588.7,4588.1,3.2078]
[1758202212786,0.5024,4588.7,4588.1,3.2078]
[1758202213079,0.1987,4588.7,4588.1,3.2078]
[1758202213282,0.3037,4588.4,4588.1,3.2078]
[1758202213470,0.3261,4588.5,4588.1,3.2078]
[1758202213675,0.1987,4588.4,4588.1,3.2078]
[1758202213978,0.3037,4588.4,4588.1,3.2078]
[1758202214476,0.3261,4588.5,4588.1,3.2078]
[1758202214674,0.1274,4588.5,4588.1,3.2078]
[1758202214876,0.1274,4589.0,4588.1,7.2078]
[1758202215073,0.1274,4589.0,4588.9,3.2078]
[1758202215376,0.7537,4589.4,4588.9,3.2078]
[1758202215580,0.1274,4589.0,4588.9,3.2078]
[1758202215777,0.4311,4589.0,4588.9,3.2078]
[1758202216583,0.6298,4589.0,4588.9,3.2078]
[1758202217081,0.6298,4589.0,4588.5,0.22]
[1758202217281,0.3261,4589.0,4588.5,0.22]
[1758202217482,0.1274,4589.0,4588.5,0.22]
[1758202217685,0.1274,4589.0,4588.4,3.2078]
[1758202217883,0.8345,4588.5,4588.4,3.2078]
[1758202218185,0.8345,4588.5,4588.4,3.4278]
[1758202218382,0.5308,4588.5,4587.8,3.2078]
[1758202218687,0.4311,4588.0,4587.9,0.22]
[1758202221086,0.1274,4588.0,4587.9,0.22]
[1758202221588,0.4311,4588.0,4587.9,0.22]
[1758202221786,0.4311,4589.0,4587.9,4.22]
[1758202222091,0.4311,4589.0,4588.9,3.2078]
[1758202222286,0.1274,4589.0,4588.9,3.4278]
[1758202222487,0.45,4589.4,4588.9,3.4278]
[1758202222686,0.1274,4589.0,4588.9,3.4278]
[1758202222992,0.45,4589.4,4588.9,3.4278]
[1758202223188,0.3037,4589.3,4588.9,3.4278]
[1758202223583,0.3037,4589.2,4588.9,3.4278]
[1758202223781,0.45,4589.4,4588.9,3.4278]
[1758202223993,0.3037,4589.3,4588.9,3.4278]
[1758202224190,0.7537,4589.4,4588.9,3.4278]
[1758202224398,0.4311,4589.0,4588.9,3.4278]
[1758202224690,0.8345,4589.0,4588.9,3.2078]
[1758202224990,0.1274,4589.0,4588.9,3.2078]
[1758202225191,0.8345,4589.0,4588.9,3.2078]
[1758202226295,0.4311,4589.0,4588.9,3.2078]
[1758202226490,0.45,4589.4,4588.9,3.2078]
[1758202226690,0.3037,4589.3,4589.0,0.221]
[1758202226890,0.3037,4589.2,4589.0,0.221]
[1758202227292,0.45,4589.4,4589.0,0.221]
[1758202227491,0.3037,4589.1,4589.0,0.221]
[1758202227891,0.5024,4589.1,4589.0,0.221]
[1758202228395,0.6298,4589.0,4588.9,3.2078]
[1758202228594,0.8345,4589.0,4588.9,3.2078]
[1758202230801,0.7071,4588.4,4588.3,3.2078]
[1758202233197,0.3037,4588.4,4588.3,3.4288]
[1758202233602,0.7071,4588.4,4588.3,3.2078]
[1758202234999,0.7071,4588.4,4587.8,3.2078]
[1758202235303,0.7071,4587.9,4587.8,3.2078]
[1758202236501,0.7071,4587.9,4586.5,31.4]
[1758202236502,0.7114,4587.2,4587.1,3.4288]
[1758202236896,0.7114,4587.2,4587.1,3.2078]
[1758202237108,0.3023,4587.2,4587.1,3.2078]
[1758202237806,0.7114,4587.2,4587.1,3.2078]
[1758202239398,0.2061,4586.9,4586.8,0.221]
[1758202239707,0.7114,4586.9,4586.8,0.221]
[1758202240103,0.3023,4586.8,4586.6,3.2078]
[1758202240305,0.7114,4586.7,4586.6,3.2078]
[1758202240700,0.5084,4586.1,4586.0,3.2078]
[1758202240909,0.5084,4586.1,4584.9,31.389]
[1758202240910,0.8336,4585.5,4585.4,3.2078]
[1758202242807,0.8336,4584.5,4584.4,3.2078]
[1758202243915,0.4245,4585.0,4584.4,3.2078]
[1758202244107,0.6306,4585.0,4584.9,3.2078]
[1758202245708,0.8336,4585.0,4584.9,3.2078]
[1758202247004,0.1222,4584.5,4584.4,3.2078]
[1758202247209,0.4245,4584.5,4584.4,3.2078]
[1758202249112,0.1222,4585.0,4584.4,7.42593]
[1758202249312,0.4245,4585.5,4584.9,3.2078]
[1758202249908,3.2078,4586.1,4585.4,3.2078]
[1758202250106,0.3023,4585.9,4585.5,0.221]
[1758202250313,0.1222,4586.5,4585.5,0.221]
[1758202250613,0.3023,4586.4,4585.5,0.221]
[1758202250913,0.5084,4586.4,4585.5,0.221]
[1758202251302,0.2061,4586.4,4586.0,3.2078]
[1758202251507,0.3023,4586.4,4586.0,3.4288]
[1758202251908,3.2078,4586.9,4586.1,0.21805]
[1758202252108,3.2078,4586.9,4586.2,0.221]
[1758202252109,3.4139,4586.9,4586.2,0.221]
[1758202252309,0.3023,4586.8,4586.2,0.221]
[1758202252505,0.3023,4586.9,4586.6,3.2078]
[1758202253218,0.3283,4587.0,4586.6,3.2078]
[1758202253219,0.3023,4587.4,4586.7,0.222]
[1758202253405,0.3023,4587.4,4587.3,3.2078]
[1758202253406,0.5084,4587.4,4587.3,3.2078]
[1758202253610,0.7114,4587.4,4587.3,3.2078]
[1758202253910,0.3023,4586.9,4586.8,3.2078]
[1758202254110,0.3023,4586.9,4586.5,0.222]
[1758202254307,0.3023,4586.9,4586.3,3.2078]
[1758202254511,0.3023,4586.4,4586.3,3.2078]
[1758202255710,0.1222,4586.5,4585.8,3.2078]
[1758202255711,0.3023,4585.9,4585.8,3.2078]
[1758202258316,0.5084,4585.9,4585.8,3.2078]
[1758202258721,0.7114,4585.9,4585.8,3.2078]
[1758202259817,0.7114,4585.4,4585.0,3.2078]
[1758202260119,0.7114,4585.1,4585.0,3.2078]
[1758202260717,0.4245,4584.0,4583.9,3.2078]
[1758202261019,0.1222,4583.5,4583.4,3.2078]
[1758202261220,0.4245,4583.5,4583.4,3.2078]
[1758202263715,0.1222,4584.0,4583.4,7.4298]
[1758202263921,0.4247,4584.5,4583.9,3.2078]
[1758202264119,0.3025,4585.1,4584.4,3.2078]
[1758202264316,0.4247,4585.0,4584.9,3.2078]
[1758202265124,0.1265,4585.5,4584.9,3.2078]
[1758202265312,31.403,4585.9,4584.0,0.0218]
[1758202265313,0.4341,4586.0,4585.4,3.2078]
[1758202265914,0.1265,4586.0,4585.4,3.2078]
[1758202266127,0.4289,4585.5,4585.0,0.222]
[1758202266321,0.1213,4585.5,4585.2,3.2078]
[1758202266728,0.3076,4585.4,4585.2,3.2078]
[1758202267620,0.1213,4585.0,4584.8,0.222]
[1758202267817,0.1213,4585.0,4584.7,3.4298]
[1758202268018,0.3076,4584.9,4584.7,3.2078]
[1758202268222,0.1213,4585.0,4584.7,3.2078]
[1758202268627,0.1265,4586.0,4584.8,0.222]
[1758202268928,1.56447112,4586.9,4584.8,0.222]
[1758202268929,0.4341,4586.5,4585.9,3.2078]
[1758202269126,0.4341,4586.5,4586.4,3.2078]
[1758202270327,0.3076,4587.1,4586.4,7.4298]
[1758202270630,0.1213,4587.5,4587.0,3.2078]
[1758202270824,0.3076,4587.3,4587.0,3.2078]
[1758202271026,0.3076,4587.1,4587.0,3.2078]
[1758202271228,0.3076,4587.1,4586.7,0.223]
[1758202271427,0.1213,4587.0,4586.7,0.223]
[1758202271631,0.1213,4587.0,4586.5,3.2078]
[1758202271828,0.3076,4587.4,4586.5,3.2078]
[1758202272028,0.8609259,4587.3,4587.0,3.2078]
[1758202272228,0.3076,4587.3,4587.0,3.2078]
[1758202272729,0.4289,4588.0,4587.1,0.223]
[1758202272938,0.6519,4588.5,4587.8,3.2078]
[1758202273131,0.1213,4588.0,4587.8,3.2078]
[1758202273342,0.1213,4588.0,4587.5,0.223]
[1758202273747,0.3076,4587.9,4587.5,0.223]
[1758202273936,0.1213,4588.0,4587.5,0.223]
[1758202274342,0.3076,4587.9,4587.5,0.223]
[1758202274539,0.1213,4588.0,4587.5,0.223]
[1758202274734,0.3076,4587.4,4587.2,0.0217]
[1758202275139,0.1213,4587.0,4586.6,3.2078]
[1758202275438,0.3076,4586.4,4586.1,3.2078]
[1758202276034,0.1213,4586.5,4586.1,3.2078]
[1758202276237,0.1213,4587.0,4586.1,3.2078]
[1758202276238,0.4289,4587.0,4586.1,3.2078]
[1758202276441,3.3291,4588.5,4586.9,3.2078]
[1758202276639,3.5521,4588.5,4587.7,3.2078]
[1758202276837,0.1213,4587.5,4587.2,3.2078]
[1758202277237,0.3076,4587.4,4587.2,3.2078]
[1758202277449,0.1213,4587.5,4587.2,3.2078]
[1758202277740,0.3076,4587.4,4587.2,3.2078]
[1758202278147,0.3076,4586.9,4586.7,3.4308]
[1758202278444,0.1213,4587.0,4586.7,3.4308]
[1758202278641,0.1213,4587.5,4586.7,3.4308]
[1758202278840,0.4289,4587.5,4587.4,3.2078]
[1758202279345,0.4289,4588.0,4587.4,3.2078]
[1758202280846,0.4289,4587.5,4587.4,3.2078]
[1758202281047,0.1213,4587.0,4586.8,3.2078]
[1758202281343,0.3076,4586.9,4586.8,3.2078]
[1758202281543,0.1213,4587.0,4586.8,3.2078]
[1758202281749,0.3076,4587.4,4586.8,3.2078]
[1758202282552,0.3076,4586.9,4586.8,3.2078]
[1758202282941,0.1213,4586.5,4586.0,3.2078]
[1758202283142,0.3076,4586.4,4586.0,3.2078]
[1758202283341,0.1213,4586.5,4585.6,0.223]
[1758202283540,0.3076,4586.4,4585.6,0.223]
[1758202283849,0.4289,4585.5,4585.4,3.2078]
[1758202284148,0.1213,4585.5,4584.9,3.2078]
[1758202284343,0.1213,4585.0,4584.9,3.2078]
[1758202284548,0.4289,4585.0,4584.9,3.2078]
[1758202286449,0.3076,4584.9,4584.5,0.223]
[1758202286746,0.4289,4584.5,4584.4,3.2078]
[1758202289553,7.54723,4584.5,4582.3,3.2078]
[1758202289851,0.2443,4585.0,4582.3,3.2078]
[1758202289852,0.3076,4582.4,4582.3,3.2078]
[1758202290053,0.1213,4582.0,4581.8,3.2078]
[1758202290354,0.3076,4581.9,4581.3,3.2296281]
[1758202290552,0.3076,4581.9,4581.3,0.0218281]
[1758202291449,0.3076,4581.4,4581.3,0.0218281]
[1758202293856,0.5306,4581.4,4581.3,0.0218281]
[1758202294958,0.3076,4580.4,4580.3,3.2078]
[1758202295462,0.3076,4580.4,4579.2,0.223]
[1758202295463,0.3198,4579.9,4579.8,3.2078]
[1758202296558,0.1262,4580.0,4579.0,3.2078]
[1758202296757,0.223,4579.9,4579.0,3.2078]
[1758202296950,0.3198,4579.8,4579.0,3.2078]
[1758202297360,0.3198,4579.8,4579.5,3.2078]
[1758202297853,0.3198,4579.9,4579.5,3.2078]
[1758202298059,0.3198,4580.4,4579.5,3.2078]
[1758202298255,0.3198,4580.4,4580.2,3.2078]
[1758202298460,0.1213,4580.5,4580.2,3.2078]
[1758202298656,0.3198,4580.4,4580.2,3.2078]
[1758202298859,0.3198,4581.1,4580.2,3.2078]
[1758202299060,0.3198,4580.9,4580.7,3.2078]
[1758202299256,3.2078,4581.7,4580.7,3.2078]
[1758202299565,0.3198,4581.4,4580.7,3.2078]
[1758202300559,0.3198,4581.9,4581.2,3.2078]
[1758202300756,0.3198,4582.3,4581.8,3.2078]
[1758202300961,34.6358,4582.9,4581.8,3.2078]
[1758202300962,0.3198,4582.7,4581.8,3.2078]
[1758202301261,0.3198,4581.9,4581.8,3.2078]
[1758202302161,0.1262,4583.0,4581.8,7.2078]
[1758202302358,0.1262,4583.0,4582.6,3.2078]
[1758202302771,0.3198,4582.9,4582.6,3.2078]
[1758202302962,0.3198,4583.4,4582.6,3.2078]
[1758202303162,0.224,4583.6,4582.6,3.2078]
[1758202303467,0.3198,4583.4,4583.1,3.2078]
[1758202303666,0.1262,4584.0,4583.1,3.2078]
[1758202303667,0.3198,4583.9,4583.1,3.2078]
[1758202303969,0.3502,4584.0,4583.1,3.2078]
[1758202304359,0.3198,4583.4,4583.1,3.2078]
[1758202304567,0.3198,4583.4,4582.4,3.2078]
[1758202304769,0.446,4582.5,4582.4,3.2078]
[1758202306862,0.1262,4583.0,4582.4,3.2078]
[1758202307358,0.446,4582.5,4582.4,3.2078]
[1758202307564,0.1262,4583.0,4582.4,3.2078]
[1758202307866,0.3198,4583.8,4582.9,3.2078]
[1758202308071,0.1262,4584.0,4583.6,3.2078]
[1758202308267,0.3198,4583.9,4583.6,3.2078]
[1758202308664,0.1262,4584.0,4583.6,3.2078]
[1758202308872,0.3198,4583.9,4583.6,3.2078]
[1758202309071,0.1262,4584.0,4583.6,3.2078]
[1758202309475,0.1262,4583.5,4583.3,0.0218]
[1758202309661,0.3198,4583.4,4583.3,0.0218]
[1758202309969,3.2078,4584.4,4583.3,0.2458]
[1758202310163,3.2078,4584.4,4583.8,3.2078]
[1758202310368,0.3198,4584.4,4584.3,3.2078]
[1758202310565,3.2078,4585.6,4584.3,3.4318]
[1758202310766,0.3198,4585.7,4584.8,3.2078]
[1758202310971,0.3198,4585.4,4584.8,3.2078]
[1758202311170,0.3198,4585.7,4584.9,0.224]
[1758202311467,0.3198,4586.2,4585.3,3.2078]
[1758202311668,0.1262,4587.0,4586.1,3.2078]
[1758202311973,0.3198,4587.3,4586.6,3.2078]
[1758202312167,0.1262,4587.0,4586.6,3.2078]
[1758202312367,0.3198,4586.9,4586.6,3.4318]
[1758202312566,0.1262,4587.0,4586.6,3.4318]
[1758202312773,0.1262,4587.0,4586.6,3.2078]
[1758202312977,0.1262,4587.0,4586.0,0.224]
[1758202312978,0.1262,4586.5,4586.0,3.2078]
[1758202314376,0.3198,4586.4,4586.0,3.2078]
[1758202314569,0.1262,4586.5,4586.0,3.2078]
[1758202314764,0.3198,4586.4,4586.0,3.2078]
[1758202315168,0.1262,4586.5,4586.0,3.2078]
[1758202315470,0.1262,4586.5,4585.2,3.2078]
[1758202315668,0.1262,4585.5,4585.1,0.224]
[1758202315863,0.1262,4585.5,4584.9,3.2078]
[1758202316268,0.3198,4585.4,4584.9,3.2078]
[1758202316578,0.446,4585.5,4584.9,3.2078]
[1758202318174,0.1262,4586.0,4585.4,3.2078]
[1758202318577,0.1262,4585.5,4585.4,3.2078]
[1758202318780,0.446,4585.5,4585.4,3.2078]
[1758202319782,0.1262,4586.5,4585.4,7.2078]
[1758202320074,0.1262,4586.5,4585.5,0.224]
[1758202320277,3.5276,4586.6,4585.5,0.224]
[1758202320582,0.3198,4587.2,4586.2,3.2078]
[1758202320783,3.4318,4587.3,4586.2,3.4318]
[1758202321080,0.3198,4586.9,4586.2,3.4318]
[1758202321278,3.2078,4587.3,4586.2,3.4318]
[1758202322174,0.446,4587.5,4586.7,3.2078]
[1758202322375,0.3198,4587.4,4586.7,3.2078]
[1758202322683,0.3198,4586.9,4586.2,3.2078]
[1758202322977,0.1262,4587.0,4586.3,0.0218]
[1758202323278,0.446,4587.5,4586.8,3.2078]
[1758202324482,0.3198,4587.4,4586.8,3.2078]
[1758202324681,0.3198,4586.9,4586.8,3.2078]
[1758202324884,0.3198,4587.4,4586.8,3.2078]
[1758202325485,0.2951,4586.9,4586.8,3.2078]
[1758202326084,0.125,4587.0,4586.8,3.2078]